bitfinex/quotes_ETHUSD_20240714
["timestamp","ask_amount","ask_price","bid_price","bid_amount"]
[1720916290377,0.259963,3199.8,3198.1,3.46887099]
[1720916290378,1.08297274,3199.7,3198.1,3.46887099]
[1720916290578,1.08297274,3199.7,3198.0,2.37]
[1720916290579,2.526,3199.4,3198.0,2.37]
[1720916290981,1.08311205,3199.3,3198.0,2.37]
[1720916291188,1.44405169,3199.2,3197.5,2.2562]
[1720916291387,1.08314049,3199.1,3197.5,2.31872526]
[1720916292290,2.526,3198.9,3197.2,0.06252457]
[1720916292510,1.08314049,3198.8,3197.2,0.06252457]
[1720916292813,2.526,3198.9,3197.3,0.06253035]
[1720916292976,3.01493,3198.9,3197.3,0.30578339]
[1720916294120,3.01493,3198.9,3197.4,0.55]
[1720916294323,1.08325753,3198.8,3197.4,0.55]
[1720916294480,3.01493,3198.9,3197.3,0.24325304]
[1720916294687,1.08332567,3198.8,3197.2,3.0]
[1720916294887,1.08332567,3198.7,3197.1,2.37]
[1720916295114,3.01493,3198.9,3197.1,2.37]
[1720916295429,1.08332946,3198.8,3197.1,2.37]
[1720916295582,1.08332946,3198.7,3197.1,2.37]
[1720916295788,1.08332946,3198.8,3197.2,0.237]
[1720916296013,1.08332946,3198.8,3197.2,3.237]
[1720916296515,2.526,3198.5,3197.2,3.237]
[1720916298415,2.3278,3198.4,3197.2,3.237]
[1720916298618,0.48538,3198.3,3197.2,3.237]
[1720916299185,0.48538,3198.3,3197.1,2.37]
[1720916299430,0.48538,3198.3,3195.7,4.67310908]
[1720916299431,2.526,3198.1,3196.2,2.50004585]
[1720916299645,2.526,3198.1,3196.3,0.06254876]
[1720916299778,1.0836287,3198.0,3196.3,0.06254876]
[1720916300126,2.526,3198.1,3196.3,0.06254876]
[1720916300298,1.33624933,3198.0,3196.4,0.25000488]
[1720916300636,1.33624933,3198.0,3195.5,2.4375]
[1720916300637,2.3278,3197.2,3195.5,2.4375]
[1720916300980,2.3278,3197.2,3195.2,0.0625672]
[1720916300981,2.526,3196.9,3195.2,0.0625672]
[1720916301393,2.526,3196.9,3195.1,4.8075]
[1720916301606,2.526,3196.9,3195.2,0.06257606]
[1720916302015,2.526,3196.9,3195.1,4.8075]
[1720916302238,0.2526,3196.8,3195.2,0.48075]
[1720916302437,2.526,3196.5,3195.1,2.37]
[1720916303096,2.526,3196.5,3195.2,0.06258231]
[1720916304008,2.526,3196.5,3195.1,2.37]
[1720916304896,0.2526,3196.8,3195.1,2.37]
[1720916304897,2.3278,3196.0,3195.1,2.37]
[1720916305096,2.3278,3196.0,3194.1,2.50008846]
[1720916305311,0.48538,3195.9,3194.2,0.25000885]
[1720916305518,2.526,3195.5,3194.2,0.25000885]
[1720916305943,2.3278,3196.0,3194.4,2.4375]
[1720916306108,0.2526,3198.0,3194.4,2.4375]
[1720916306109,2.3278,3196.6,3194.5,2.58857749]
[1720916306937,2.3278,3196.6,3194.6,3.0]
[1720916307119,2.3278,3196.6,3194.7,0.96384124]
[1720916307316,2.3278,3196.6,3194.8,0.06257806]
[1720916307503,2.3278,3196.6,3194.9,0.55]
[1720916307737,2.3278,3196.6,3195.0,0.06257296]
[1720916307916,2.3278,3196.6,3195.1,0.55]
[1720916308125,2.3278,3196.6,3194.6,0.06257298]
[1720916308126,2.526,3196.3,3194.6,0.06257298]
[1720916309124,2.526,3195.7,3194.4,2.4375]
[1720916309324,2.3278,3195.6,3194.2,0.25000885]
[1720916310072,2.1909,3195.1,3194.2,2.44146885]
[1720916310263,2.1909,3195.1,3194.2,2.19146]
[1720916311205,2.19084,3195.2,3194.0,4.56159]
[1720916311206,2.19093,3195.0,3194.0,4.56159]
[1720916311410,2.19099,3194.9,3194.0,4.56159]
[1720916311645,2.19099,3194.9,3194.1,0.675323]
[1720916312212,2.19121,3194.6,3194.0,2.37]
[1720916312509,2.19121,3194.6,3193.5,2.19193]
[1720916312720,2.3278,3194.7,3193.2,2.1921]
[1720916312922,2.526,3194.5,3193.2,2.1921]
[1720916313161,0.2526,3194.4,3192.9,2.19232]
[1720916313333,0.2526,3194.4,3193.0,2.19229]
[1720916313544,2.19167,3193.9,3193.0,2.19229]
[1720916313755,2.19167,3193.9,3192.6,2.37]
[1720916313756,0.2526,3194.4,3193.2,2.19212]
[1720916313951,2.3278,3194.7,3193.5,2.19188]
[1720916314125,2.3278,3194.7,3193.9,2.19166]
[1720916314451,2.3278,3194.7,3193.6,0.219188]
[1720916314756,2.3278,3194.7,3193.9,2.19167]
[1720916316067,4.51893,3194.7,3193.9,2.19167]
[1720916316673,2.3278,3194.7,3193.7,3.0]
[1720916316844,2.3278,3194.7,3193.1,2.19221]
[1720916316845,2.19147,3194.2,3193.1,2.19221]
[1720916317174,2.3278,3194.7,3192.6,2.37]
[1720916317175,2.1918,3193.8,3192.9,2.19234]
[1720916317380,2.1918,3193.8,3192.4,2.4375]
[1720916317381,2.19181,3193.7,3192.4,2.4375]
[1720916317537,2.19181,3193.7,3192.8,2.19241]
[1720916317871,2.19181,3193.7,3192.6,2.19256]
[1720916318086,2.19195,3193.6,3192.7,0.219256]
[1720916318373,2.19198,3193.5,3192.7,0.219256]
[1720916318582,2.19188,3193.6,3192.7,0.219256]
[1720916318884,2.337,3193.8,3192.9,4.38472]
[1720916318885,4.52875,3193.8,3192.9,4.38472]
[1720916319073,4.71757,3194.1,3193.1,2.19216]
[1720916319284,4.52841,3194.3,3193.0,3.50736046]
[1720916319285,2.337,3194.3,3193.3,2.19208]
[1720916319781,2.19155,3194.1,3193.0,5.63701491]
[1720916320087,2.337,3194.3,3193.0,3.44473491]
[1720916320321,2.337,3194.3,3193.1,0.06262206]
[1720916321011,2.8233,3194.3,3193.0,0.44473491]
[1720916321617,2.526,3194.1,3193.0,0.44473491]
[1720916322111,2.526,3194.1,3192.3,3.0]
[1720916322313,2.526,3193.7,3192.2,2.3376]
[1720916322522,2.337,3194.3,3192.2,2.3376]
[1720916322721,2.337,3194.3,3192.4,2.526]
[1720916323019,2.337,3194.3,3192.5,3.06262011]
[1720916323205,2.337,3194.3,3192.6,0.30626201]
[1720916323206,2.526,3194.0,3192.6,0.30626201]
[1720916323573,2.526,3194.0,3192.3,3.0]
[1720916323827,2.526,3194.0,3192.2,2.3376]
[1720916324578,2.526,3194.0,3191.4,0.3133]
[1720916324579,2.337,3193.9,3191.4,2.40023492]
[1720916324780,2.526,3193.5,3191.6,2.37]
[1720916325115,2.337,3193.4,3191.6,2.37]
[1720916325417,0.4863,3193.3,3191.7,0.237]
[1720916326755,0.4863,3193.3,3191.8,0.06264791]
[1720916327045,2.337,3193.4,3191.8,0.06264791]
[1720916328140,2.337,3193.4,3191.9,0.55]
[1720916328332,2.337,3193.4,3192.0,0.06263496]
[1720916328512,2.337,3193.4,3192.1,0.55]
[1720916328710,2.337,3193.4,3192.2,0.06263498]
[1720916328921,2.8541029,3193.9,3192.3,2.40023495]
[1720916329119,2.8541029,3193.9,3192.4,0.2400235]
[1720916329548,2.8541029,3193.9,3191.9,3.0]
[1720916329761,2.8541029,3193.9,3192.0,0.55]
[1720916330057,2.8541029,3193.9,3191.9,3.55]
[1720916330408,2.8541029,3193.9,3191.9,3.0]
[1720916330409,2.337,3193.8,3191.9,3.0]
[1720916330749,2.887,3193.8,3191.7,3.237]
[1720916331083,2.337,3193.3,3191.8,0.5607]
[1720916332109,2.337,3193.3,3191.8,0.62334682]
[1720916332408,2.337,3193.3,3191.9,0.55]
[1720916333943,2.337,3193.3,3192.0,0.06263919]
[1720916334146,2.337,3193.3,3192.1,0.55]
[1720916334511,2.8541029,3193.9,3192.2,2.3376]
[1720916334512,2.337,3193.8,3192.2,2.3376]
[1720916334716,2.337,3193.8,3192.3,0.90765192]
[1720916334943,2.337,3193.8,3192.3,3.90765192]
[1720916335444,1.5,3195.4,3192.3,3.90765192]
[1720916335445,2.526,3194.3,3192.3,3.90765192]
[1720916337118,0.32808179,3195.3,3192.3,3.90765192]
[1720916337457,2.526,3194.8,3192.5,0.3133]
[1720916337750,1.08471558,3194.7,3192.6,0.06261686]
[1720916337959,1.08471558,3194.6,3192.7,0.88759169]
[1720916338253,2.526,3194.8,3192.9,2.2845]
[1720916338423,1.08467271,3194.7,3193.0,0.61261683]
[1720916338610,2.526,3194.8,3193.0,0.61261683]
[1720916338818,1.08467071,3194.7,3193.1,0.28971168]
[1720916339157,3.01218,3194.8,3193.2,0.61261685]
[1720916339158,2.526,3194.8,3193.2,0.61261685]
[1720916339342,1.08463049,3194.7,3193.3,0.06260923]
[1720916339649,2.526,3194.8,3193.4,0.55]
[1720916339829,1.08462893,3194.7,3193.4,0.55]
[1720916340026,2.526,3194.8,3193.4,0.55]
[1720916340351,1.08463379,3194.7,3193.4,0.55]
[1720916340508,2.526,3194.8,3193.4,0.55]
[1720916340714,1.08463705,3194.7,3193.4,0.55]
[1720916341023,1.08463705,3194.6,3193.1,0.28971168]
[1720916341216,1.08467304,3194.5,3193.1,0.28971168]
[1720916341416,0.5946437,3194.7,3193.0,3.0]
[1720916341417,2.526,3194.3,3193.0,3.0]
[1720916341653,1.08467304,3194.2,3192.9,2.2845]
[1720916342064,3.61072325,3194.6,3192.9,2.2845]
[1720916342227,1.084737,3194.5,3192.9,2.2845]
[1720916342425,1.084737,3194.4,3192.9,2.2845]
[1720916342624,2.19161,3194.0,3193.2,2.19215]
[1720916344052,2.19168,3193.9,3193.1,3.0]
[1720916344267,2.19188,3193.6,3193.1,3.0]
[1720916344476,2.19188,3193.6,3193.0,0.52845]
[1720916344621,2.19178,3193.8,3193.0,0.52845]
[1720916344817,2.19184,3193.7,3193.0,2.72073]
[1720916345042,2.19184,3193.7,3192.7,2.53008169]
[1720916345043,2.526,3194.1,3193.1,5.764233]
[1720916345255,3.27649069,3194.0,3193.2,2.19211]
[1720916345433,2.19166,3194.0,3193.2,2.19211]
[1720916345819,2.19166,3194.0,3193.2,2.19209]
[1720916346223,2.3267,3194.3,3192.9,2.19235]
[1720916346455,1.5366146,3194.2,3192.8,3.0]
[1720916346639,2.19165,3194.0,3193.2,2.19214]
[1720916346961,2.643315,3194.2,3193.3,2.19207]
[1720916347178,3.27629973,3194.1,3193.3,2.19207]
[1720916347338,3.27643182,3194.0,3193.2,2.19214]
[1720916347533,1.08481038,3193.9,3193.2,2.19214]
[1720916347757,2.19163,3194.0,3193.3,2.19207]
[1720916347966,0.451805,3194.2,3193.3,2.630491]
[1720916347967,2.643325,3194.2,3193.3,2.630491]
[1720916348265,5.1125037,3194.7,3193.5,2.19189]
[1720916348266,1.08475154,3194.1,3193.5,2.19189]
[1720916348418,2.19137,3194.4,3193.6,2.19186]
[1720916348622,3.27609283,3194.3,3193.6,2.19186]
[1720916348822,2.1914,3194.3,3193.6,2.19186]
[1720916349336,2.1914,3194.3,3193.4,2.19197]
[1720916349337,1.08468559,3194.2,3193.4,2.19197]
[1720916349534,2.19147,3194.2,3193.5,2.19194]
[1720916349866,1.08473042,3194.1,3193.5,2.19194]
[1720916350018,2.19147,3194.2,3193.5,2.19194]
[1720916350222,1.08473226,3194.1,3193.5,2.25449596]
[1720916350474,2.19134,3194.4,3193.7,2.1918]
[1720916350621,2.19121,3194.6,3193.8,2.19172]
[1720916350622,1.08467717,3194.3,3193.8,2.19172]
[1720916350823,2.19121,3194.6,3193.8,2.19172]
[1720916351045,3.27590822,3194.5,3193.8,2.19172]
[1720916351247,1.08463822,3194.4,3193.8,2.19172]
[1720916352873,2.19127,3194.5,3193.8,2.19172]
[1720916353079,1.08465039,3194.4,3193.9,0.219172]
[1720916353254,2.19132,3194.5,3193.9,0.219172]
[1720916353438,1.08463807,3194.4,3193.7,2.19176]
[1720916353639,2.19132,3194.5,3193.7,2.19176]
[1720916353949,1.08464133,3194.4,3193.7,2.19176]
[1720916354151,2.19132,3194.5,3193.7,2.19176]
[1720916354480,3.27599127,3194.4,3193.6,5.19187]
[1720916354777,2.19134,3194.4,3193.7,2.710997]
[1720916355150,1.08466335,3194.3,3193.7,2.710997]
[1720916355373,2.19134,3194.4,3193.7,2.710997]
[1720916355542,1.08466981,3194.3,3193.7,2.710997]
[1720916355738,2.19134,3194.4,3193.7,2.710997]
[1720916355936,1.08467056,3194.3,3193.7,2.710997]
[1720916356135,2.19134,3194.4,3193.7,2.710997]
[1720916356334,1.08465445,3194.3,3193.7,2.710997]
[1720916356556,2.19124,3194.6,3193.8,0.2710997]
[1720916356764,2.19124,3194.6,3193.8,2.4628397]
[1720916356765,1.08464792,3194.5,3193.8,2.4628397]
[1720916356989,1.08464792,3194.4,3193.8,2.4628397]
[1720916357203,2.19124,3194.6,3193.8,2.4628397]
[1720916357204,2.19127,3194.5,3193.8,2.4628397]
[1720916357364,1.08461467,3194.4,3193.8,2.4628397]
[1720916357727,2.19117,3194.7,3193.8,2.4628397]
[1720916357885,3.27580302,3194.6,3193.9,0.29820267]
[1720916358197,1.08461302,3194.5,3193.9,0.29820267]
[1720916358484,3.27595302,3194.4,3193.7,0.519187]
[1720916358675,1.08464425,3194.3,3193.7,2.710987]
[1720916358852,2.19134,3194.4,3193.7,2.710987]
[1720916359055,1.0846351,3194.3,3193.7,2.710987]
[1720916359265,1.08466123,3194.2,3193.7,2.710987]
[1720916359470,2.19134,3194.4,3193.7,2.710987]
[1720916359656,1.08465547,3194.3,3193.7,2.710987]
[1720916359856,1.08465547,3194.2,3193.7,2.710987]
[1720916360056,1.08465547,3194.3,3193.7,2.710987]
[1720916360351,1.08466175,3194.2,3193.7,2.710987]
[1720916360558,2.19134,3194.4,3193.7,2.710987]
[1720916360753,1.08466231,3194.3,3193.4,3.0]
[1720916360959,3.27617231,3194.2,3193.3,2.19207]
[1720916361158,1.08466231,3194.1,3193.3,2.19207]
[1720916361355,1.08466231,3194.1,3193.4,0.519207]
[1720916361669,1.08466231,3194.1,3193.4,3.519207]
[1720916362490,2.19151,3194.2,3193.4,3.519207]
[1720916362701,1.08470086,3194.1,3193.4,3.519207]
[1720916363000,2.19151,3194.2,3193.4,3.519207]
[1720916363001,1.08470086,3194.0,3193.4,3.519207]
[1720916363209,2.19151,3194.2,3193.4,3.519207]
[1720916363210,1.08470086,3194.1,3193.5,0.5711277]
[1720916363360,1.0847006,3194.0,3193.5,0.5711277]
[1720916363555,1.0847006,3193.9,3193.5,0.5711277]
[1720916363792,2.1918,3193.8,3193.1,2.4944]
[1720916364096,2.1918,3193.8,3192.7,2.53008169]
[1720916364097,2.19199,3193.5,3192.7,4.78624169]
[1720916364299,2.19199,3193.5,3192.7,2.19245]
[1720916364593,2.4761,3194.3,3192.3,4.44895]
[1720916364594,2.19209,3193.3,3192.3,4.44895]
[1720916364891,2.19223,3193.1,3192.3,2.2562]
[1720916365194,1.08488299,3193.0,3191.9,4.44923]
[1720916365491,2.4761,3193.4,3191.9,4.44923]
[1720916365492,2.19245,3192.8,3191.9,4.44923]
[1720916365802,1.08514039,3192.7,3192.0,0.444923]
[1720916365959,2.19242,3192.9,3192.1,2.19287]
[1720916366507,1.902,3193.6,3192.2,2.19279]
[1720916366508,2.19209,3193.3,3192.2,2.19279]
[1720916366710,1.08501028,3193.2,3192.3,2.25539485]
[1720916366995,1.08501028,3193.1,3192.4,2.1927]
[1720916367195,1.08501583,3193.0,3192.5,0.21927]
[1720916367360,2.19209,3193.3,3192.5,0.21927]
[1720916367561,1.08503192,3193.2,3192.5,0.21927]
[1720916367760,1.08503192,3193.1,3192.5,0.21927]
[1720916367961,2.19209,3193.3,3192.5,0.21927]
[1720916368162,1.08500674,3193.2,3192.5,0.21927]
[1720916368496,1.08500674,3193.1,3192.5,0.21927]
[1720916368664,1.08500674,3193.2,3192.5,0.21927]
[1720916368864,2.19209,3193.3,3192.5,2.4119]
[1720916369170,1.08503807,3193.2,3192.5,2.4119]
[1720916369499,3.2772684,3193.1,3192.5,0.21927]
[1720916369798,1.0850384,3193.0,3192.3,2.19273]
[1720916369995,1.0850384,3193.0,3192.4,2.1927]
[1720916370166,1.0850384,3193.0,3192.2,2.19281]
[1720916370167,3.2773384,3193.0,3192.2,2.19281]
[1720916370496,2.19223,3193.1,3192.2,2.19281]
[1720916370697,2.19229,3193.0,3192.3,0.519281]
[1720916370897,2.19229,3193.0,3192.3,3.0]
[1720916370898,2.19245,3192.8,3192.3,3.0]
[1720916371195,2.19245,3192.8,3192.1,3.0]
[1720916371196,2.19263,3192.6,3192.1,3.0]
[1720916371398,2.19263,3192.6,3191.6,3.0]
[1720916372479,2.19278,3192.3,3191.5,2.2562]
[1720916372677,2.19278,3192.3,3191.3,4.56346]
[1720916372982,2.19278,3192.3,3191.4,0.456346]
[1720916373281,2.19278,3192.3,3191.3,2.19346]
[1720916374012,4.66844,3193.0,3191.8,2.19311]
[1720916374013,2.19253,3192.7,3191.8,2.19311]
[1720916374211,2.19248,3192.8,3191.6,2.19325]
[1720916374510,3.2777506,3192.7,3191.6,2.19325]
[1720916374715,4.38548,3192.4,3191.5,5.19331]
[1720916374884,4.38548,3192.4,3191.6,0.519331]
[1720916375079,4.38548,3192.4,3191.6,3.0]
[1720916375411,4.38548,3192.4,3191.6,2.19319]
[1720916375412,2.19271,3192.4,3191.6,2.19319]
[1720916377395,2.19261,3192.6,3191.6,2.19322]
[1720916377721,2.19265,3192.5,3191.6,5.19322]
[1720916377883,2.19265,3192.5,3191.7,2.19317]
[1720916378084,2.19265,3192.5,3191.8,0.52558212]
[1720916378593,2.19265,3192.5,3191.8,3.52558212]
[1720916379703,2.19253,3192.7,3191.8,5.71868212]
[1720916379904,2.19253,3192.7,3191.8,5.78133332]
[1720916380120,2.19257,3192.6,3191.8,5.71868212]
[1720916380316,2.19257,3192.6,3191.9,0.57186821]
[1720916380631,2.19257,3192.6,3191.9,3.57186821]
[1720916380836,2.19257,3192.6,3191.9,0.57186821]
[1720916381128,2.19257,3192.6,3191.9,3.57186821]
[1720916381494,2.19274,3192.4,3191.9,3.0]
[1720916381828,2.19274,3192.4,3191.6,2.19325]
[1720916382334,2.19257,3192.6,3191.8,2.19308]
[1720916382543,2.19257,3192.6,3191.8,5.19308]
[1720916382909,4.66841,3193.0,3191.9,2.19302]
[1720916383112,2.19243,3192.8,3191.9,2.712328]
[1720916383436,2.19243,3192.8,3192.0,3.0]
[1720916383595,2.19243,3192.8,3191.9,2.19302]
[1720916383798,2.19243,3192.8,3192.0,2.19292]
[1720916384332,2.19243,3192.8,3191.9,2.193]
[1720916384635,2.19243,3192.8,3192.0,2.931581]
[1720916384950,4.66841,3193.0,3192.1,5.1929]
[1720916386420,2.19237,3192.9,3192.1,5.1929]
[1720916386830,2.4761,3193.0,3192.2,2.19278]
[1720916387007,2.19223,3193.1,3192.3,2.19274]
[1720916387213,1.08518614,3193.0,3192.4,2.411924]
[1720916387437,2.19217,3193.2,3192.4,3.219274]
[1720916387620,2.19217,3193.2,3192.4,0.219274]
[1720916388034,0.32813485,3193.1,3192.4,0.219274]
[1720916388244,0.32813485,3193.1,3192.5,0.2412014]
[1720916388548,0.32813485,3193.1,3192.5,2.4338314]
[1720916389845,0.32813485,3193.1,3192.5,0.2412014]
[1720916390146,2.52040485,3193.1,3192.3,2.19274]
[1720916390370,2.19236,3192.9,3192.1,3.0]
[1720916390580,3.27752416,3192.8,3192.1,3.0]
[1720916390737,3.27752416,3192.8,3192.0,3.0]
[1720916390738,1.08508416,3192.7,3192.0,3.0]
[1720916390937,3.27759416,3192.7,3191.5,4.45607]
[1720916391254,2.19271,3192.4,3191.6,5.19325]
[1720916391865,1.08533173,3192.3,3191.6,5.19325]
[1720916392092,2.19257,3192.6,3191.7,2.19317]
[1720916392381,3.27792117,3192.5,3191.8,0.738642]
[1720916392583,1.08528117,3192.4,3191.8,3.738642]
[1720916392752,1.08527868,3192.3,3191.9,2.19304]
[1720916392954,6.517,3193.0,3192.1,2.19286]
[1720916392955,2.19236,3192.9,3192.1,2.19286]
[1720916393294,3.27765309,3192.8,3192.0,2.19298]
[1720916393449,1.08520309,3192.7,3192.0,2.19298]
[1720916393648,1.08520309,3192.7,3192.1,2.1929]
[1720916394035,1.08520309,3192.7,3192.0,2.19295]
[1720916394672,1.08522039,3192.6,3192.0,2.19295]
[1720916394859,1.08522039,3192.5,3192.0,2.19295]
[1720916395063,1.08521,3192.4,3191.9,5.19304]
[1720916395403,1.08523773,3192.3,3192.0,2.19297]
[1720916395699,2.19245,3192.8,3192.0,2.19297]
[1720916395901,1.08525056,3192.7,3192.0,2.19297]
[1720916396090,1.08525056,3192.6,3192.0,2.19297]
[1720916396290,1.08525056,3192.7,3191.8,5.19309]
[1720916396493,1.08525056,3192.6,3191.9,2.74303]
[1720916396663,1.08525056,3192.7,3191.9,2.74303]
[1720916397004,1.08525056,3192.6,3191.8,3.738626]
[1720916397191,1.08525056,3192.9,3191.8,3.738626]
[1720916397805,2.19264,3192.5,3191.8,3.738626]
[1720916397970,1.08531291,3192.4,3191.8,3.738626]
[1720916398284,1.08531291,3192.3,3191.8,3.738626]
[1720916398480,1.08531291,3192.2,3191.8,3.738626]
[1720916398703,2.19264,3192.5,3191.3,2.19344]
[1720916398704,1.08531291,3192.4,3191.3,2.19344]
[1720916398914,2.19264,3192.5,3191.4,0.55]
[1720916398915,1.08531291,3192.3,3191.4,0.55]
[1720916399111,2.19292,3192.1,3191.2,2.19352]
[1720916399312,3.27834291,3192.0,3191.2,2.19352]
[1720916399471,1.08531291,3191.9,3191.2,2.19352]
[1720916399802,1.08531291,3191.9,3191.3,2.19344]
[1720916400004,3.27831291,3192.0,3191.2,2.661202]
[1720916400219,1.08531291,3191.9,3191.2,2.661202]
[1720916400798,2.193,3192.0,3191.3,3.0]
[1720916401003,1.08545396,3191.8,3191.3,3.0]
[1720916401318,1.08545396,3191.7,3191.2,3.467682]
[1720916401482,3.27857396,3191.8,3191.3,3.0]
[1720916401682,1.08545396,3191.7,3191.1,5.19359]
[1720916401924,1.08545396,3191.9,3191.2,0.767689]
[1720916402098,1.08545396,3191.8,3191.2,0.767689]
[1720916402286,1.08545396,3191.9,3191.2,0.767689]
[1720916402913,1.08545396,3191.9,3191.3,2.19345]
[1720916403121,1.08545396,3191.9,3191.3,3.0]
[1720916403303,3.27855396,3191.9,3191.3,3.0]
[1720916403503,3.27855396,3191.9,3191.0,2.4833]
[1720916403504,2.1931,3191.9,3191.1,3.0]
[1720916403730,3.27866325,3191.8,3191.1,3.0]
[1720916403928,2.19313,3191.8,3191.1,3.0]
[1720916404117,1.08554387,3191.7,3191.1,3.0]
[1720916404323,1.08554387,3191.6,3191.0,2.19366]
[1720916404522,1.08554387,3191.5,3191.0,2.19366]
[1720916404706,2.19313,3191.8,3191.0,2.94405799]
[1720916404910,1.08555273,3191.7,3191.1,5.19359]
[1720916405110,4.2552,3192.3,3191.1,5.19359]
[1720916405111,2.19284,3192.2,3191.4,2.4833]
[1720916405311,1.08545818,3192.1,3191.4,2.4833]
[1720916405521,1.08545818,3192.0,3191.3,2.19341]
[1720916405723,3.27837818,3192.1,3191.3,2.987109]
[1720916405929,1.08545818,3192.0,3191.3,2.987109]
[1720916406245,1.08545818,3192.0,3191.3,0.793699]
[1720916406436,2.19305,3191.9,3191.1,5.19358]
[1720916406634,1.08549228,3191.8,3191.1,5.19358]
[1720916406833,1.08549228,3191.7,3191.2,2.19352]
[1720916407014,2.19305,3191.9,3191.2,2.19352]
[1720916407215,1.08547955,3191.8,3191.1,3.0]
[1720916407417,1.08547955,3191.7,3191.2,0.8427308]
[1720916407617,2.19305,3191.9,3191.2,0.8427308]
[1720916407853,1.08550573,3191.8,3191.2,0.8427308]
[1720916408050,1.08550573,3191.7,3191.2,3.0362408]
[1720916408254,2.19291,3192.1,3191.2,3.0362408]
[1720916408431,1.08546378,3192.0,3191.3,0.82297908]
[1720916408762,1.08546378,3191.9,3191.3,0.82297908]
[1720916408913,1.08546378,3191.8,3191.3,0.82297908]
[1720916409110,2.19286,3192.2,3191.3,0.82297908]
[1720916409352,1.08545441,3192.1,3191.7,2.19314]
[1720916409530,2.19265,3192.5,3191.8,0.219314]
[1720916409743,1.08533099,3192.4,3191.7,2.19314]
[1720916409950,2.19259,3192.6,3191.7,2.19314]
[1720916410119,1.08535803,3192.5,3191.7,2.19314]
[1720916410317,1.08535803,3192.4,3191.7,2.19314]
[1720916410525,1.08535803,3192.3,3191.7,2.19314]
[1720916410727,1.08535803,3192.2,3191.8,0.219314]
[1720916411067,2.19259,3192.6,3191.9,4.67633]
[1720916411235,1.08526505,3192.5,3191.9,4.67633]
[1720916411424,1.08526505,3192.4,3191.9,2.4833]
[1720916411620,1.08526505,3192.3,3191.9,2.4833]
[1720916411825,2.19259,3192.6,3191.9,2.9728724]
[1720916412128,1.08526732,3192.5,3191.9,2.9728724]
[1720916412327,1.08526732,3192.4,3191.9,0.4895724]
[1720916412569,1.08526732,3192.4,3191.6,2.19324]
[1720916412570,1.08526732,3192.3,3191.5,2.4833]
[1720916412720,1.08526732,3192.3,3191.5,3.0]
[1720916412721,2.19278,3192.3,3191.5,3.0]
[1720916413032,1.08526732,3192.2,3191.5,3.0]
[1720916413236,1.08536348,3192.1,3191.5,5.19329]
[1720916413562,2.19278,3192.3,3191.5,5.19329]
[1720916413865,1.08535217,3192.2,3191.6,0.793663]
[1720916414066,1.08535217,3192.1,3191.6,3.793663]
[1720916414238,0.32818938,3192.1,3191.6,3.793663]
[1720916415143,0.32818938,3192.1,3191.6,5.986913]
[1720916415535,0.32818938,3192.1,3191.6,3.793663]
[1720916415736,0.32818938,3192.1,3191.7,0.5986953]
[1720916417626,0.32818938,3192.1,3191.4,3.55]
[1720916417827,0.32818938,3192.1,3190.8,0.77378984]
[1720916417828,1.08538258,3192.0,3190.8,0.1165799]
[1720916418030,3.27843258,3191.9,3191.0,2.19362]
[1720916418240,3.27843258,3191.9,3190.8,2.3103699]
[1720916418241,3.27850258,3191.8,3190.9,2.19373]
[1720916418443,1.08538258,3191.7,3190.9,2.19373]
[1720916418648,1.08538258,3191.7,3190.9,2.65350099]
[1720916418952,1.08538258,3191.7,3190.8,0.1165799]
[1720916418953,2.1933,3191.6,3190.8,0.1165799]
[1720916419156,1.08538258,3191.5,3190.8,0.1165799]
[1720916419625,2.1933,3191.6,3190.8,2.3103599]
[1720916420026,1.08562409,3191.5,3190.8,2.3103599]
[1720916420230,3.41892409,3191.4,3190.8,0.1165799]
[1720916420456,1.08562409,3191.3,3190.8,0.1165799]
[1720916420657,3.27908409,3191.3,3190.8,0.1165799]
[1720916420899,1.08562409,3191.2,3190.8,0.1165799]
[1720916421367,2.19362,3191.1,3190.8,0.1165799]
[1720916421575,1.08562409,3191.0,3190.8,0.1165799]
[1720916422072,3.27929409,3191.0,3190.8,0.1165799]
[1720916422400,1.08562409,3190.9,3190.8,0.1165799]
[1720916423000,2.19354,3191.2,3190.8,0.1165799]
[1720916423299,3.27930743,3191.1,3190.8,0.1165799]
[1720916423501,2.1936,3191.1,3190.8,0.1165799]
[1720916423716,1.08574248,3191.0,3190.8,0.1165799]
[1720916423864,2.1936,3191.1,3190.8,0.1165799]
[1720916424228,1.08577609,3191.0,3190.8,0.1165799]
[1720916424366,1.08577609,3190.9,3190.8,0.1165799]
[1720916424570,3.27950609,3190.9,3190.8,0.1165799]
[1720916425484,5.47323609,3190.9,3190.8,0.1165799]
[1720916425673,3.27950609,3190.9,3190.8,0.1165799]
[1720916426175,5.47339953,3190.9,3190.8,0.1165799]
[1720916426372,6.21113948,3190.9,3190.8,0.1165799]
[1720916427789,8.54443948,3190.9,3190.8,0.1165799]
[1720916428215,10.73816948,3190.9,3190.8,0.1165799]
[1720916429228,9.65222995,3190.9,3190.8,0.1165799]
[1720916429522,11.06653973,3190.9,3190.8,0.1165799]
[1720916429724,11.0665443,3190.9,3190.8,0.1165799]
[1720916430495,11.6165443,3190.9,3190.8,0.1165799]
[1720916431836,8.8728143,3190.9,3190.8,0.1165799]
[1720916432200,7.78671411,3190.9,3190.8,0.1165799]
[1720916432533,8.87274856,3190.9,3190.8,0.1165799]
[1720916432832,8.87278409,3190.9,3190.8,0.1165799]
[1720916434653,0.32821416,3190.9,3190.8,0.1165799]
[1720916435053,0.32821416,3190.9,3190.8,0.16517819]
[1720916435948,1.41416775,3190.9,3190.8,0.1165799]
[1720916436425,0.32821416,3190.9,3190.8,0.1165799]
[1720916436628,1.41415101,3190.9,3190.8,0.1165799]